[Event "GrandPrix_29.05"]
[Site "Chess.com"]
[Date "2020.05.29"]
[Round "8"]
[White "matej2221"]
[Black "ulkaf961"]
[Result "1-0"]
[WhiteElo "2193"]
[BlackElo "2032"]
[TimeControl "600+2"]
[EndTime "13:02:57 PDT"]
[Termination "matej2221 won by resignation"]

1. e4 {[%clk 0:10:01.9]} 1... e6 {[%clk 0:10:00.3]} 2. d4 {[%clk 0:09:58.1]}
2... d5 {[%clk 0:10:01.2]} 3. Nd2 {[%clk 0:09:32.4]} 3... a6 {[%clk 0:10:00.9]}
4. c3 {[%clk 0:09:30.3]} 4... Nf6 {[%clk 0:09:57.5]} 5. Bd3 {[%clk 0:09:28.9]}
5... c5 {[%clk 0:09:58]} 6. Ngf3 {[%clk 0:09:25.4]} 6... Nc6 {[%clk 0:09:56.3]}
7. exd5 {[%clk 0:09:19.7]} 7... exd5 {[%clk 0:09:56.9]} 8. O-O {[%clk
0:09:20.4]} 8... Be7 {[%clk 0:09:57.4]} 9. dxc5 {[%clk 0:09:21.5]} 9... O-O
{[%clk 0:09:57.7]} 10. Nb3 {[%clk 0:08:22.8]} 10... Bg4 {[%clk 0:09:46.4]} 11.
Be3 {[%clk 0:08:13.6]} 11... Qc7 {[%clk 0:09:07.7]} 12. Be2 {[%clk 0:08:07.5]}
12... Rad8 {[%clk 0:08:55.3]} 13. Nfd4 {[%clk 0:08:04.6]} 13... Bxe2 {[%clk
0:08:43.2]} 14. Qxe2 {[%clk 0:08:06.5]} 14... Qc8 {[%clk 0:06:34]} 15. Nxc6
{[%clk 0:07:01.9]} 15... bxc6 {[%clk 0:05:26.9]} 16. f3 {[%clk 0:06:32.4]} 16...
Rfe8 {[%clk 0:05:22.2]} 17. Qf2 {[%clk 0:06:26.6]} 17... Nd7 {[%clk 0:05:00.7]}
18. Na5 {[%clk 0:06:15.1]} 18... Bf6 {[%clk 0:03:31]} 19. Bd4 {[%clk 0:05:49.2]}
19... Ne5 {[%clk 0:03:03.3]} 20. Rfd1 {[%clk 0:05:21.6]} 20... Re6 {[%clk
0:02:58.2]} 21. Qf1 {[%clk 0:05:06]} 21... Rde8 {[%clk 0:02:47.4]} 22. b4 {[%clk
0:04:53.3]} 22... h5 {[%clk 0:02:40.7]} 23. c4 {[%clk 0:04:42.1]} 23... Nxc4
{[%clk 0:00:28.1]} 24. Nxc4 {[%clk 0:04:38.8]} 24... Bxd4+ {[%clk 0:00:28.9]}
25. Rxd4 {[%clk 0:04:37.6]} 25... dxc4 {[%clk 0:00:30.3]} 26. Qxc4 {[%clk
0:04:33.4]} 26... Re2 {[%clk 0:00:28.8]} 27. Rad1 {[%clk 0:04:23.2]} 27... Re1+
{[%clk 0:00:16]} 28. Rxe1 {[%clk 0:04:01.4]} 28... Rxe1+ {[%clk 0:00:16.9]} 29.
Kf2 {[%clk 0:04:02.7]} 29... Qe8 {[%clk 0:00:16.4]} 30. Re4 {[%clk 0:03:52.6]}
30... Rxe4 {[%clk 0:00:16.9]} 31. Qxe4 {[%clk 0:03:53.6]} 31... Qd7 {[%clk
0:00:16.8]} 32. Ke3 {[%clk 0:03:42]} 32... Qd1 {[%clk 0:00:17.8]} 33. Qxc6
{[%clk 0:03:24.8]} 33... Qe1+ {[%clk 0:00:18.7]} 34. Kd4 {[%clk 0:03:21.9]}
34... Qxb4+ {[%clk 0:00:19]} 35. Kd5 {[%clk 0:03:19.9]} 35... Qd2+ {[%clk
0:00:19.4]} 36. Ke5 {[%clk 0:03:17.4]} 36... Qg5+ {[%clk 0:00:11.5]} 37. Kd6
{[%clk 0:03:15.9]} 37... Qf4+ {[%clk 0:00:11.8]} 38. Kd7 {[%clk 0:03:16.2]}
38... Qxh2 {[%clk 0:00:10.9]} 39. Qa8+ {[%clk 0:03:01.4]} 39... Kh7 {[%clk
0:00:11.4]} 40. Qe4+ {[%clk 0:03:03]} 40... g6 {[%clk 0:00:11.8]} 41. c6 {[%clk
0:03:03.5]} 41... Qxg2 {[%clk 0:00:12.2]} 42. c7 {[%clk 0:02:54.2]} 42... Qd2+
{[%clk 0:00:13]} 43. Ke8 {[%clk 0:02:53.4]} 43... Qc3 {[%clk 0:00:10.9]} 44. Qe7
{[%clk 0:02:20]} 44... Qh8+ {[%clk 0:00:08.8]} 45. Kxf7 {[%clk 0:02:06.3]} 45...
Kh6 {[%clk 0:00:07.6]} 46. f4 {[%clk 0:01:48]} 46... Qc8 {[%clk 0:00:06.8]} 47.
Qg5+ {[%clk 0:01:46.7]} 47... Kh7 {[%clk 0:00:06.9]} 48. Qxg6+ {[%clk
0:01:47.6]} 1-0

[Event "GrandPrix_29.05"]
[Site "Chess.com"]
[Date "2020.05.29"]
[Round "8"]
[White "SacrificeGod"]
[Black "klippfiskkjerringa"]
[Result "1-0"]
[WhiteElo "2282"]
[BlackElo "2054"]
[TimeControl "600+2"]
[EndTime "13:02:58 PDT"]
[Termination "SacrificeGod won by checkmate"]

1. e4 {[%clk 0:10:01.9]} 1... e5 {[%clk 0:10:00.1]} 2. Nf3 {[%clk 0:10:02]} 2...
Nc6 {[%clk 0:10:01.4]} 3. Bc4 {[%clk 0:10:02.7]} 3... Nf6 {[%clk 0:10:01.2]} 4.
d3 {[%clk 0:10:02.9]} 4... Bc5 {[%clk 0:09:57.2]} 5. c3 {[%clk 0:10:03.5]} 5...
O-O {[%clk 0:09:52.3]} 6. Bb3 {[%clk 0:10:04]} 6... d5 {[%clk 0:09:49.9]} 7. Qe2
{[%clk 0:10:04.2]} 7... a5 {[%clk 0:09:27.2]} 8. a4 {[%clk 0:09:59.5]} 8... Be6
{[%clk 0:09:17.2]} 9. Bc2 {[%clk 0:09:59.3]} 9... h6 {[%clk 0:09:07.1]} 10. Nbd2
{[%clk 0:09:58.5]} 10... Re8 {[%clk 0:08:59.2]} 11. h3 {[%clk 0:09:55.1]} 11...
Nh5 {[%clk 0:07:52.5]} 12. g3 {[%clk 0:09:51.2]} 12... Nf6 {[%clk 0:07:42.4]}
13. g4 {[%clk 0:09:49.8]} 13... Nh7 {[%clk 0:07:37.7]} 14. Nf1 {[%clk
0:09:49.1]} 14... Qd6 {[%clk 0:06:39.8]} 15. Ng3 {[%clk 0:09:40.2]} 15... Rad8
{[%clk 0:06:33.3]} 16. Rg1 {[%clk 0:09:16.8]} 16... Kh8 {[%clk 0:06:29.4]} 17.
Nf5 {[%clk 0:08:14.9]} 17... Bxf5 {[%clk 0:06:04.3]} 18. gxf5 {[%clk 0:08:14.6]}
18... d4 {[%clk 0:05:42.7]} 19. h4 {[%clk 0:07:32.8]} 19... Qe7 {[%clk
0:05:05.9]} 20. Rh1 {[%clk 0:07:20.6]} 20... Rd6 {[%clk 0:05:03.8]} 21. Bb3
{[%clk 0:06:31.2]} 21... Qf8 {[%clk 0:05:02.2]} 22. Ng5 {[%clk 0:04:10.7]} 22...
hxg5 {[%clk 0:04:27.1]} 23. hxg5 {[%clk 0:04:10.4]} 23... g6 {[%clk 0:04:21.7]}
24. f6 {[%clk 0:04:10.2]} 24... Kg8 {[%clk 0:02:26.3]} 25. Qg4 {[%clk
0:02:47.1]} 25... Kh8 {[%clk 0:01:32]} 26. Rh3 {[%clk 0:02:36.2]} 26... Nd8
{[%clk 0:01:00.7]} 27. Bd2 {[%clk 0:02:26.9]} 27... Ne6 {[%clk 0:00:59.3]} 28.
Ke2 {[%clk 0:02:18]} 28... Qg8 {[%clk 0:00:58]} 29. Rah1 {[%clk 0:01:17]} 29...
Red8 {[%clk 0:00:57.7]} 30. Rxh7+ {[%clk 0:00:51.9]} 30... Qxh7 {[%clk
0:00:57.1]} 31. Rxh7+ {[%clk 0:00:52.2]} 31... Kxh7 {[%clk 0:00:58.8]} 32. Qh4+
{[%clk 0:00:51.3]} 32... Kg8 {[%clk 0:00:59.7]} 33. Qh6 {[%clk 0:00:51.9]} 33...
R6d7 {[%clk 0:00:42.6]} 34. Bxe6 {[%clk 0:00:51.6]} 34... fxe6 {[%clk
0:00:44.5]} 35. Qxg6+ {[%clk 0:00:53]} 35... Kh8 {[%clk 0:00:37.2]} 36. f7
{[%clk 0:00:51.9]} 36... Bf8 {[%clk 0:00:36.4]} 37. Qh5+ {[%clk 0:00:52.9]}
37... Kg7 {[%clk 0:00:36.7]} 38. g6 {[%clk 0:00:53.8]} 38... dxc3 {[%clk
0:00:19.4]} 39. Bh6+ {[%clk 0:00:53.9]} 39... Kf6 {[%clk 0:00:18.5]} 40. Qg5#
{[%clk 0:00:52.5]} 1-0

[Event "GrandPrix_29.05"]
[Site "Chess.com"]
[Date "2020.05.29"]
[Round "8"]
[White "Kostya_Nikologorskiy"]
[Black "ftorodent"]
[Result "1-0"]
[WhiteElo "2242"]
[BlackElo "2091"]
[TimeControl "600+2"]
[EndTime "13:03:00 PDT"]
[Termination "Kostya_Nikologorskiy won by resignation"]

1. e4 {[%clk 0:09:59.4]} 1... c5 {[%clk 0:09:59.5]} 2. Nf3 {[%clk 0:09:57.1]}
2... e6 {[%clk 0:09:59.8]} 3. b3 {[%clk 0:09:45.5]} 3... Nc6 {[%clk 0:09:49.8]}
4. Bb2 {[%clk 0:09:40.7]} 4... Nf6 {[%clk 0:09:44.5]} 5. e5 {[%clk 0:09:40.1]}
5... Nd5 {[%clk 0:09:45.2]} 6. Nc3 {[%clk 0:09:36.9]} 6... Nxc3 {[%clk
0:09:32.3]} 7. Bxc3 {[%clk 0:09:30.1]} 7... Be7 {[%clk 0:09:08.9]} 8. Bd3 {[%clk
0:09:11.1]} 8... O-O {[%clk 0:08:48.1]} 9. h4 {[%clk 0:09:00.1]} 9... h6 {[%clk
0:08:01.1]} 10. Qe2 {[%clk 0:08:45.7]} 10... d5 {[%clk 0:07:20.9]} 11. exd6
{[%clk 0:08:44.7]} 11... Qxd6 {[%clk 0:07:21.8]} 12. O-O-O {[%clk 0:08:42.3]}
12... Nb4 {[%clk 0:06:47.3]} 13. Bxb4 {[%clk 0:08:40.6]} 13... cxb4 {[%clk
0:06:48.1]} 14. Qe5 {[%clk 0:08:34]} 14... Qxe5 {[%clk 0:06:33.5]} 15. Nxe5
{[%clk 0:08:35.9]} 15... Bd6 {[%clk 0:06:27.8]} 16. f4 {[%clk 0:08:30.5]} 16...
f6 {[%clk 0:05:54.4]} 17. Ng6 {[%clk 0:08:23.7]} 17... Rd8 {[%clk 0:05:55.4]}
18. h5 {[%clk 0:08:21.3]} 18... Bd7 {[%clk 0:05:53.5]} 19. Rde1 {[%clk
0:08:16.6]} 19... b5 {[%clk 0:05:32.2]} 20. g4 {[%clk 0:07:50.3]} 20... a5
{[%clk 0:05:29.3]} 21. g5 {[%clk 0:07:35.9]} 21... a4 {[%clk 0:05:24.9]} 22. Kd1
{[%clk 0:05:06.3]} 22... axb3 {[%clk 0:05:10.7]} 23. axb3 {[%clk 0:05:08.2]}
23... Kf7 {[%clk 0:04:47.5]} 24. Rhf1 {[%clk 0:05:03.5]} 24... Ra1+ {[%clk
0:04:20.6]} 25. Ke2 {[%clk 0:05:04.3]} 25... Rxe1+ {[%clk 0:04:21.4]} 26. Kxe1
{[%clk 0:04:56.9]} 26... Ra8 {[%clk 0:04:18.8]} 27. Ke2 {[%clk 0:04:37.6]} 27...
Bc6 {[%clk 0:04:11.3]} 28. gxh6 {[%clk 0:03:59.8]} 28... gxh6 {[%clk 0:04:11.7]}
29. Ne5+ {[%clk 0:04:00.9]} 29... Bxe5 {[%clk 0:04:08.9]} 30. fxe5 {[%clk
0:04:00]} 30... f5 {[%clk 0:04:09.9]} 31. Rg1 {[%clk 0:04:00.3]} 31... Rd8
{[%clk 0:04:03]} 32. Ke3 {[%clk 0:03:57.5]} 32... Rd5 {[%clk 0:03:58.9]} 33. Rg6
{[%clk 0:03:44.4]} 33... Rxe5+ {[%clk 0:03:57.4]} 34. Kf4 {[%clk 0:03:45.3]}
34... Re1 {[%clk 0:03:51.9]} 35. Rxh6 {[%clk 0:03:46.4]} 35... e5+ {[%clk
0:03:36.7]} 36. Kg5 {[%clk 0:03:14.5]} 36... Be4 {[%clk 0:02:33.2]} 37. Bxe4
{[%clk 0:02:24.9]} 37... fxe4 {[%clk 0:02:33.4]} 38. Kf5 {[%clk 0:02:23.5]}
38... e3 {[%clk 0:02:29.9]} 39. dxe3 {[%clk 0:02:21.9]} 39... Rxe3 {[%clk
0:02:30.8]} 40. Rh7+ {[%clk 0:02:22.2]} 40... Kg8 {[%clk 0:02:31]} 41. Re7
{[%clk 0:02:18.4]} 41... Rh3 {[%clk 0:02:22.3]} 42. Kg6 {[%clk 0:02:06.9]} 42...
Rg3+ {[%clk 0:02:20.4]} 43. Kf6 {[%clk 0:02:08.3]} 43... Rf3+ {[%clk 0:02:08]}
44. Kxe5 {[%clk 0:01:22.7]} 44... Rh3 {[%clk 0:02:07.9]} 45. Kd6 {[%clk
0:01:18.9]} 45... Rxh5 {[%clk 0:02:08]} 46. Re5 {[%clk 0:01:19.5]} 46... Rh2
{[%clk 0:01:52.4]} 47. Rc5 {[%clk 0:01:17.6]} 47... Kf7 {[%clk 0:00:50.8]} 48.
Kc6 {[%clk 0:01:16.8]} 48... Ke6 {[%clk 0:00:44.3]} 49. Kxb5 {[%clk 0:01:17.8]}
49... Rh4 {[%clk 0:00:41.5]} 50. Rc4 {[%clk 0:01:17.5]} 1-0

[Event "GrandPrix_29.05"]
[Site "Chess.com"]
[Date "2020.05.29"]
[Round "8"]
[White "sergiochess83"]
[Black "aleksandrovaleksei"]
[Result "0-1"]
[WhiteElo "2440"]
[BlackElo "2483"]
[TimeControl "600+2"]
[EndTime "13:03:05 PDT"]
[Termination "aleksandrovaleksei won by resignation"]

1. e4 {[%clk 0:10:01.9]} 1... e5 {[%clk 0:10:00.2]} 2. Nf3 {[%clk 0:10:02.1]}
2... Nc6 {[%clk 0:10:00.1]} 3. Bb5 {[%clk 0:10:03.7]} 3... Nf6 {[%clk
0:10:00.3]} 4. d3 {[%clk 0:10:03.5]} 4... d6 {[%clk 0:10:00.4]} 5. O-O {[%clk
0:09:53.5]} 5... Bd7 {[%clk 0:10:00.8]} 6. c3 {[%clk 0:09:51.8]} 6... g6 {[%clk
0:10:01.1]} 7. Re1 {[%clk 0:09:42.3]} 7... Bg7 {[%clk 0:10:01.9]} 8. Nbd2 {[%clk
0:09:41.3]} 8... O-O {[%clk 0:10:02]} 9. Nf1 {[%clk 0:09:42.3]} 9... Nh5 {[%clk
0:09:53.4]} 10. Ng3 {[%clk 0:08:58.8]} 10... Nxg3 {[%clk 0:09:50]} 11. hxg3
{[%clk 0:08:59.4]} 11... Kh8 {[%clk 0:09:38.4]} 12. d4 {[%clk 0:08:43.1]} 12...
Nxd4 {[%clk 0:09:33]} 13. Nxd4 {[%clk 0:08:08.2]} 13... exd4 {[%clk 0:09:32.2]}
14. Bxd7 {[%clk 0:08:06.3]} 14... dxc3 {[%clk 0:09:31.9]} 15. Ba4 {[%clk
0:07:21.4]} 15... cxb2 {[%clk 0:09:29.8]} 16. Bxb2 {[%clk 0:07:22.7]} 16... Bxb2
{[%clk 0:09:30]} 17. Rb1 {[%clk 0:07:24.6]} 17... Qf6 {[%clk 0:08:36.1]} 18. Qc2
{[%clk 0:06:55.5]} 18... Bd4 {[%clk 0:08:32.9]} 19. Rxb7 {[%clk 0:06:54.7]}
19... Bb6 {[%clk 0:08:32.2]} 20. Bc6 {[%clk 0:06:55.8]} 20... Rad8 {[%clk
0:08:22.8]} 21. a4 {[%clk 0:06:56.4]} 21... a5 {[%clk 0:08:21]} 22. Bd5 {[%clk
0:06:42.7]} 22... Rde8 {[%clk 0:08:14.8]} 23. Rxc7 {[%clk 0:06:37.7]} 23... Bxc7
{[%clk 0:08:08.2]} 24. Qxc7 {[%clk 0:06:39.6]} 24... Rb8 {[%clk 0:07:04.9]} 25.
Qxa5 {[%clk 0:06:26.8]} 25... Rb2 {[%clk 0:07:05.4]} 26. Qa7 {[%clk 0:06:19.8]}
26... Kg7 {[%clk 0:07:00.1]} 27. Rf1 {[%clk 0:06:12.5]} 27... Rfb8 {[%clk
0:06:55]} 28. a5 {[%clk 0:05:51.5]} 28... Rb1 {[%clk 0:06:43.4]} 29. Rxb1 {[%clk
0:05:48]} 29... Rxb1+ {[%clk 0:06:44.1]} 30. Kh2 {[%clk 0:05:49.6]} 30... h5
{[%clk 0:06:41.5]} 31. a6 {[%clk 0:05:28]} 31... Ra1 {[%clk 0:06:30.8]} 32. Qb6
{[%clk 0:05:05]} 32... h4 {[%clk 0:06:04.6]} 33. a7 {[%clk 0:05:02.2]} 33...
hxg3+ {[%clk 0:04:22]} 34. Kxg3 {[%clk 0:04:50.1]} 34... g5 {[%clk 0:04:04.7]}
35. Qe3 {[%clk 0:04:18.1]} 35... Rxa7 {[%clk 0:04:00.8]} 36. Kg4 {[%clk
0:04:09.6]} 36... Kg6 {[%clk 0:03:41.2]} 37. g3 {[%clk 0:03:12.3]} 37... Ra1
{[%clk 0:03:30]} 38. Qd2 {[%clk 0:01:13]} 38... Qe5 {[%clk 0:02:03.5]} 39. Qd3
{[%clk 0:01:08.4]} 39... Rc1 {[%clk 0:01:49.8]} 40. Qf3 {[%clk 0:00:53.9]} 40...
Qf6 {[%clk 0:01:37.1]} 41. Qxf6+ {[%clk 0:00:52.1]} 41... Kxf6 {[%clk
0:01:36.5]} 42. f4 {[%clk 0:00:54]} 42... gxf4 {[%clk 0:01:31.6]} 43. gxf4
{[%clk 0:00:55.9]} 43... Rf1 {[%clk 0:01:23.7]} 44. Kg3 {[%clk 0:00:52.7]} 44...
Ke7 {[%clk 0:01:21.8]} 45. Bc4 {[%clk 0:00:52.7]} 45... Rg1+ {[%clk 0:01:21.5]}
46. Kf2 {[%clk 0:00:53]} 46... Rc1 {[%clk 0:01:20.4]} 47. Bd5 {[%clk 0:00:52.8]}
47... Rc3 {[%clk 0:01:19.9]} 48. Ke2 {[%clk 0:00:50.6]} 48... f6 {[%clk
0:01:19.8]} 0-1

[Event "GrandPrix_29.05"]
[Site "Chess.com"]
[Date "2020.05.29"]
[Round "8"]
[White "Igrok3069"]
[Black "temus_galaktionov"]
[Result "1/2-1/2"]
[WhiteElo "2663"]
[BlackElo "2620"]
[TimeControl "600+2"]
[EndTime "13:03:06 PDT"]
[Termination "Game drawn by agreement"]

1. d4 {[%clk 0:10:01.9]} 1... c6 {[%clk 0:10:01.9]} 2. Nf3 {[%clk 0:09:58.9]}
2... g5 {[%clk 0:10:03.2]} 3. Bxg5 {[%clk 0:09:51.6]} 3... Bg7 {[%clk
0:10:03.4]} 4. c4 {[%clk 0:09:45.6]} 4... d6 {[%clk 0:10:03.5]} 5. Nc3 {[%clk
0:09:45.4]} 5... Bg4 {[%clk 0:10:03]} 6. e3 {[%clk 0:09:42.6]} 6... Qa5 {[%clk
0:09:58.2]} 7. Bh4 {[%clk 0:09:35.2]} 7... Nd7 {[%clk 0:09:51.7]} 8. Be2 {[%clk
0:09:31.4]} 8... Ngf6 {[%clk 0:09:50.5]} 9. Qa4 {[%clk 0:08:59.9]} 9... Qc7
{[%clk 0:09:47.8]} 10. O-O {[%clk 0:08:54.7]} 10... Rg8 {[%clk 0:09:47]} 11.
Rac1 {[%clk 0:08:38.9]} 11... Bh8 {[%clk 0:09:38.9]} 12. Rfe1 {[%clk 0:08:31.6]}
12... Nb6 {[%clk 0:09:19.5]} 13. Qa5 {[%clk 0:08:12.3]} 13... Qc8 {[%clk
0:09:10.2]} 14. b3 {[%clk 0:08:01.7]} 14... h6 {[%clk 0:08:56.4]} 15. Bg3 {[%clk
0:07:41.4]} 15... Nh5 {[%clk 0:08:30.5]} 16. Nh4 {[%clk 0:07:14]} 16... Nxg3
{[%clk 0:08:26.4]} 17. Bxg4 {[%clk 0:06:26]} 17... Qxg4 {[%clk 0:08:28.3]} 18.
hxg3 {[%clk 0:06:26.3]} 18... Bf6 {[%clk 0:08:29.4]} 19. Nf3 {[%clk 0:05:12]}
19... h5 {[%clk 0:08:29.9]} 20. Ne2 {[%clk 0:05:02.3]} 20... h4 {[%clk
0:08:07.7]} 21. Nh2 {[%clk 0:04:49.2]} 21... Qe4 {[%clk 0:07:33]} 22. g4 {[%clk
0:04:38.7]} 22... Rg5 {[%clk 0:07:26.7]} 23. Qd2 {[%clk 0:04:32.3]} 23... O-O-O
{[%clk 0:07:22.3]} 24. Nf4 {[%clk 0:04:23]} 24... e5 {[%clk 0:06:26.1]} 25. d5
{[%clk 0:03:40]} 25... Be7 {[%clk 0:05:32.4]} 26. Qd3 {[%clk 0:02:55.3]} 26...
Qxd3 {[%clk 0:05:31.1]} 27. Nxd3 {[%clk 0:02:56.1]} 27... e4 {[%clk 0:05:33]}
28. Nf4 {[%clk 0:02:55.2]} 28... Bf6 {[%clk 0:05:32.2]} 29. Red1 {[%clk
0:02:41.9]} 29... Kc7 {[%clk 0:05:00.4]} 30. dxc6 {[%clk 0:02:38.3]} 30... bxc6
{[%clk 0:05:00.5]} 31. Rc2 {[%clk 0:02:38.6]} 31... a5 {[%clk 0:04:58.1]} 32.
Rcd2 {[%clk 0:02:07.5]} 32... Bc3 {[%clk 0:04:55.3]} 33. Rc2 {[%clk 0:02:08.2]}
33... Bf6 {[%clk 0:04:55.7]} 34. Nh3 {[%clk 0:02:00.7]} 34... Rc5 {[%clk
0:04:46.8]} 35. f4 {[%clk 0:02:01.5]} 35... d5 {[%clk 0:04:28.1]} 36. g5 {[%clk
0:01:29.5]} 36... dxc4 {[%clk 0:04:22.6]} 37. Rdc1 {[%clk 0:01:30.5]} 37... Bg7
{[%clk 0:04:08.8]} 38. bxc4 {[%clk 0:01:30.9]} 38... Rd3 {[%clk 0:04:08.1]} 39.
Ng4 {[%clk 0:01:31]} 39... Ra3 {[%clk 0:03:38]} 40. Nhf2 {[%clk 0:01:31.5]}
40... Ra4 {[%clk 0:03:38.8]} 41. Nxe4 {[%clk 0:01:32.1]} 41... Rcxc4 {[%clk
0:03:40.2]} 42. Nef6 {[%clk 0:01:27.6]} 42... Bxf6 {[%clk 0:03:08.1]} 43. Nxf6
{[%clk 0:01:27.7]} 43... Kd6 {[%clk 0:03:04.3]} 44. f5 {[%clk 0:01:23.2]} 44...
Rxc2 {[%clk 0:02:35.9]} 45. Rxc2 {[%clk 0:01:23.7]} 45... Nd5 {[%clk 0:02:37.3]}
46. Nxd5 {[%clk 0:00:17.7]} 46... cxd5 {[%clk 0:02:39.2]} 47. Rb2 {[%clk
0:00:07.4]} 47... Ke5 {[%clk 0:02:19.9]} 48. g6 {[%clk 0:00:08.4]} 48... fxg6
{[%clk 0:02:21.4]} 49. fxg6 {[%clk 0:00:09.6]} 49... Kf6 {[%clk 0:02:19.6]} 50.
Rb6+ {[%clk 0:00:06.9]} 50... Kg7 {[%clk 0:02:19.8]} 51. Rd6 {[%clk 0:00:07.6]}
51... Rxa2 {[%clk 0:02:19.8]} 52. Rxd5 {[%clk 0:00:08.5]} 52... Kxg6 {[%clk
0:02:20.7]} 53. Kh2 {[%clk 0:00:09.5]} 53... Ra3 {[%clk 0:02:12.8]} 54. Kh3
{[%clk 0:00:08.7]} 54... Rxe3+ {[%clk 0:02:10.2]} 55. Kxh4 {[%clk 0:00:09.6]}
55... a4 {[%clk 0:02:12]} 56. Ra5 {[%clk 0:00:09.7]} 56... a3 {[%clk 0:02:12.7]}
57. g4 {[%clk 0:00:10.5]} 1/2-1/2

[Event "GrandPrix_29.05"]
[Site "Chess.com"]
[Date "2020.05.29"]
[Round "8"]
[White "Nodar_Lortkipanidze"]
[Black "AvitalBor"]
[Result "0-1"]
[WhiteElo "2577"]
[BlackElo "2733"]
[TimeControl "600+2"]
[EndTime "13:03:07 PDT"]
[Termination "AvitalBor won by resignation"]

1. e4 {[%clk 0:10:01.9]} 1... e5 {[%clk 0:09:58.8]} 2. Nf3 {[%clk 0:10:02.7]}
2... Nc6 {[%clk 0:09:59.7]} 3. d4 {[%clk 0:10:03.7]} 3... exd4 {[%clk
0:09:59.3]} 4. Nxd4 {[%clk 0:10:05.6]} 4... Nf6 {[%clk 0:09:57.6]} 5. Nxc6
{[%clk 0:10:06.5]} 5... bxc6 {[%clk 0:09:58.1]} 6. e5 {[%clk 0:10:08.1]} 6...
Qe7 {[%clk 0:09:59.3]} 7. Qe2 {[%clk 0:10:09.5]} 7... Nd5 {[%clk 0:10:00.7]} 8.
c4 {[%clk 0:10:11]} 8... Ba6 {[%clk 0:10:01.9]} 9. b3 {[%clk 0:10:12.3]} 9... g5
{[%clk 0:09:57.4]} 10. Bb2 {[%clk 0:09:13.1]} 10... Bg7 {[%clk 0:09:57.9]} 11.
g3 {[%clk 0:08:43.2]} 11... O-O {[%clk 0:09:57.2]} 12. Bg2 {[%clk 0:08:44.3]}
12... Rfe8 {[%clk 0:09:43.5]} 13. O-O {[%clk 0:08:44.6]} 13... Bxe5 {[%clk
0:09:44]} 14. Qxe5 {[%clk 0:08:45.8]} 14... Qxe5 {[%clk 0:09:45]} 15. Bxe5
{[%clk 0:08:47.4]} 15... Rxe5 {[%clk 0:09:46.2]} 16. cxd5 {[%clk 0:08:45.4]}
16... Bxf1 {[%clk 0:09:47.6]} 17. Kxf1 {[%clk 0:08:45.4]} 17... cxd5 {[%clk
0:09:49]} 18. Nc3 {[%clk 0:08:43.1]} 18... c6 {[%clk 0:09:50.1]} 19. Bf3 {[%clk
0:08:44.3]} 19... f5 {[%clk 0:09:42.9]} 20. h3 {[%clk 0:08:43.8]} 20... Kg7
{[%clk 0:09:43.4]} 21. Rd1 {[%clk 0:08:42.5]} 21... Rf8 {[%clk 0:09:37.7]} 22.
Rd4 {[%clk 0:08:43]} 22... Rf7 {[%clk 0:08:59.5]} 23. Ra4 {[%clk 0:08:36.1]}
23... d6 {[%clk 0:08:59.6]} 24. Ne2 {[%clk 0:08:33.1]} 24... c5 {[%clk
0:08:28.5]} 25. Ra6 {[%clk 0:08:23.3]} 25... Rd7 {[%clk 0:08:16.5]} 26. Nc3
{[%clk 0:08:06.2]} 26... d4 {[%clk 0:08:16.8]} 27. Nb5 {[%clk 0:07:59.3]} 27...
d3 {[%clk 0:08:00.9]} 28. Rxd6 {[%clk 0:07:58]} 28... Rxd6 {[%clk 0:07:45.9]}
29. Nxd6 {[%clk 0:07:59.9]} 29... d2 {[%clk 0:07:43.4]} 30. Kg2 {[%clk
0:07:49.5]} 30... Rd5 {[%clk 0:06:18.9]} 31. Bxd5 {[%clk 0:07:33.4]} 31... d1=Q
{[%clk 0:06:17.6]} 32. Nxf5+ {[%clk 0:07:34.8]} 32... Kf8 {[%clk 0:06:09.4]} 33.
Ne3 {[%clk 0:07:35.2]} 33... Qc1 {[%clk 0:06:00]} 34. a4 {[%clk 0:07:14.5]}
34... h5 {[%clk 0:05:56.9]} 35. Bc4 {[%clk 0:07:02.4]} 35... Qc3 {[%clk
0:05:51.6]} 36. Bd5 {[%clk 0:07:01.1]} 36... h4 {[%clk 0:05:43.8]} 37. Bc4
{[%clk 0:06:20.9]} 37... Qe5 {[%clk 0:05:32.7]} 38. g4 {[%clk 0:05:41.2]} 38...
Ke8 {[%clk 0:05:28.1]} 39. Bd5 {[%clk 0:05:40]} 39... Kd8 {[%clk 0:05:28.7]} 40.
Kg1 {[%clk 0:05:38.7]} 40... Kc7 {[%clk 0:05:21.6]} 41. Kg2 {[%clk 0:05:38.6]}
41... Qd4 {[%clk 0:05:08]} 42. Kg1 {[%clk 0:05:35.3]} 42... Qa1+ {[%clk
0:05:03.6]} 43. Kg2 {[%clk 0:05:36.3]} 43... Kd6 {[%clk 0:05:02.4]} 44. Bc4
{[%clk 0:05:23.8]} 44... Ke5 {[%clk 0:05:01.3]} 45. Kh2 {[%clk 0:05:21.1]} 45...
Qb1 {[%clk 0:04:52.7]} 46. Kg2 {[%clk 0:05:21.4]} 46... Kd4 {[%clk 0:04:47.9]}
47. Bd5 {[%clk 0:03:43.9]} 47... Kc3 {[%clk 0:04:37.6]} 48. Nf1 {[%clk
0:03:29.5]} 48... Qd3 {[%clk 0:03:58.7]} 49. Bc4 {[%clk 0:03:25.4]} 49... Qe4+
{[%clk 0:03:57.1]} 50. Kg1 {[%clk 0:03:26.2]} 50... Qf3 {[%clk 0:02:47.9]} 51.
Ne3 {[%clk 0:02:56.9]} 51... Kd2 {[%clk 0:02:34.2]} 52. Bf1 {[%clk 0:02:42.2]}
52... Qe4 {[%clk 0:02:14.5]} 53. Bc4 {[%clk 0:02:11.3]} 53... Qb1+ {[%clk
0:02:14.6]} 54. Kg2 {[%clk 0:02:11.9]} 54... Ke1 {[%clk 0:02:12]} 55. Kf3 {[%clk
0:02:12.9]} 55... Kd2 {[%clk 0:01:41]} 56. Nf1+ {[%clk 0:02:11.9]} 56... Ke1
{[%clk 0:01:32.3]} 57. Ne3 {[%clk 0:02:12.7]} 57... Qb2 {[%clk 0:01:33.3]} 58.
Ng2+ {[%clk 0:02:10.5]} 58... Kd2 {[%clk 0:01:30.7]} 59. Ne3 {[%clk 0:02:11.4]}
59... Qa1 {[%clk 0:01:13.9]} 60. Nf1+ {[%clk 0:02:09.5]} 60... Ke1 {[%clk
0:01:11.6]} 61. Ne3 {[%clk 0:02:11]} 61... Qf6+ {[%clk 0:01:12.2]} 62. Nf5
{[%clk 0:02:02.6]} 62... Qb2 {[%clk 0:01:05.2]} 63. Ne3 {[%clk 0:01:56]} 63...
Qxf2+ {[%clk 0:01:04.5]} 64. Ke4 {[%clk 0:01:57.4]} 64... Qf4+ {[%clk
0:01:05.4]} 65. Kd3 {[%clk 0:01:58.1]} 65... Qd4+ {[%clk 0:01:05.9]} 66. Kc2
{[%clk 0:01:58.8]} 0-1